[Event "BL Meisterschaftsturnier 2020"]
[Site "Karlsruhe"]
[Date "2020.09.19"]
[Round "6.7"]
[White "Naumann, Alexander"]
[Black "Florstedt, Johannes"]
[Result "1-0"]
[ECO "B90"]
[WhiteElo "2539"]
[BlackElo "2353"]
[Annotator "ChessBase"]
[PlyCount "92"]
[EventDate "2020.09.16"]
[EventType "team-tourn"]
[EventCountry "GER"]
[SourceTitle "playchess.com"]
[Source "ChessBase"]
[SourceQuality "1"]
[WhiteTeam "Solingen"]
[BlackTeam "SF Berlin"]
[TimeControl "40/5400+30:1800+30"]

1. e4 {[%emt 0:00:55]} c5 {[%emt 0:00:00]} 2. Nf3 {[%emt 0:00:06]} d6 {[%emt 0:00:00]} 3. d4 {[%emt 0:00:04]} cxd4 {[%emt 0:00:00]} 4. Nxd4 {[%emt 0:00:07]} Nf6 {[%emt 0:00:00]} 5. Nc3 {[%emt 0:00:09]} a6 {[%emt 0:00:00]} 6. Be3 {[%emt 0:00:08]} e5 {[%emt 0:00:03]} 7. Nb3 {[%emt 0:00:06]} Be6 {[%emt 0:00:12]} 8. f3 {[%emt 0:00:06]} h5 {[%emt 0:00:08]} 9. Nd5 {[%emt 0:00:44]} Bxd5 {[%emt 0:00:09]} 10. exd5 {[%emt 0:00:06]} Nbd7 {[%emt 0:00:09]} 11. Qd2 {[%emt 0:00:39]} g6 {[%emt 0:00:19]} 12. O-O-O {[%emt 0:01:58]} Nb6 {[%emt 0:00:54]} 13. Kb1 {[%emt 0:00:18]} Nbxd5 {[%emt 0:01:47]} 14. Bg5 {[%emt 0:00:17]} Be7 {[%emt 0:00:51]} 15. g3 {[%emt 0:01:03]} Nb6 {[%emt 0:07:43]} 16. Bxf6 {[%emt 0:07:56]} Bxf6 {[%emt 0:00:05]} 17. Qxd6 {[%emt 0:00:12]} Qxd6 {[%emt 0:00:30]} 18. Rxd6 {[%emt 0:00:04]} Bd8 {[%emt 0:00:26]} 19. Bg2 {[%emt 0:20:50]} Bc7 {[%emt 0:00:19]} 20. Rd3 {[%emt 0:03:37]} h4 {[%emt 0:13:03]} 21. Nc5 {[%emt 0:15:50]} hxg3 {[%emt 0:09:12]} 22. hxg3 {[%emt 0:00:19]} Rxh1+ {[%emt 0:00:08]} 23. Bxh1 {[%emt 0:00:04]} Ke7 {[%emt 0:00:45]} 24. f4 {[%emt 0:08:28]} exf4 {[%emt 0:01:46]} 25. gxf4 {[%emt 0:00:22]} Bxf4 {[%emt 0:01:48]} 26. Bxb7 {[%emt 0:00:30]} Ra7 {[%emt 0:01:21]} 27. Bxa6 {[%emt 0:05:43]} f5 {[%emt 0:05:00]} 28. b4 {[%emt 0:08:52]} Bd6 {[%emt 0:07:53]} 29. Re3+ {[%emt 0:02:35]} Kf7 {[%emt 0:00:50]} 30. Bb5 {[%emt 0:02:18]} g5 {[%emt 0:05:06]} 31. Bd3 {[%emt 0:09:41]} f4 {[%emt 0:00:44]} 32. Rh3 {[%emt 0:00:07]} Re7 {[%emt 0:12:49]} 33. Ne4 {[%emt 0:01:04]} Bxb4 {[%emt 0:00:32]} 34. Nxg5+ {[%emt 0:00:28]} Kf6 {[%emt 0:03:37]} 35. Ne4+ {[%emt 0:01:31]} Ke5 {[%emt 0:00:38]} 36. c3 {[%emt 0:01:24]} Bxc3 {[%emt 0:03:33]} 37. Nxc3 {[%emt 0:00:17]} Rg7 {[%emt 0:00:34]} 38. Ne2 {[%emt 0:04:54]} Nd5 {[%emt 0:00:11]} 39. Rh5+ {[%emt 0:00:17]} Kd6 {[%emt 0:00:05]} 40. Be4 {[%emt 0:04:40]} Nf6 {[%emt 0:00:07]} 41. Rh6 {[%emt 0:30:21]} Ke5 {[%emt 0:30:06]} 42. Bf3 {[%emt 0:00:26]} Ne4 {[%emt 0:02:51]} 43. Bxe4 {[%emt 0:00:00]} Kxe4 {[%emt 0:00:00]} 44. Rh4 {[%emt 0:00:00]} Kf3 {[%emt 0:00:00]} 45. Nd4+ {[%emt 0:00:00]} Ke4 {[%emt 0:00:00]} 46. Rxf4+ {[%emt 0:00:00]} Kd5 1-0

[Event "BL Meisterschaftsturnier 2020"]
[Site "Karlsruhe"]
[Date "2020.09.19"]
[Round "6.8"]
[White "Kollars, Dmitrij"]
[Black "Fedorchuk, Sergey A."]
[Result "1/2-1/2"]
[ECO "B46"]
[WhiteElo "2585"]
[BlackElo "2615"]
[Annotator "RC"]
[PlyCount "72"]
[EventDate "2020.09.16"]
[EventType "team-tourn"]
[EventCountry "GER"]
[SourceTitle "playchess.com"]
[Source "ChessBase"]
[SourceQuality "1"]
[WhiteTeam "Deizisau"]
[BlackTeam "Viernheim"]
[TimeControl "40/5400+30:1800+30"]

1. e4 {[%emt 0:01:51]} c5 {[%emt 0:00:46]} 2. Nf3 {[%emt 0:00:05]} e6 {[%emt 0:02:52]} 3. d4 {[%emt 0:00:08]} cxd4 {[%emt 0:00:08]} 4. Nxd4 {[%emt 0:00:05]} Nc6 {[%emt 0:00:50]} 5. Nc3 {[%emt 0:00:13]} a6 {[%emt 0:05:54]} 6. Nxc6 {[%emt 0:00:00]} bxc6 {[%emt 0:00:07]} 7. Bd3 {[%emt 0:00:33]} d5 {[%emt 0:00:39]} 8. O-O {[%emt 0:00:24]} Nf6 {[%emt 0:00:50]} 9. Re1 {[%emt 0:00:57]} Be7 {[%emt 0:02:18]} 10. e5 {[%emt 0:00:34]} Nd7 {[%emt 0:01:13]} 11. Qg4 {[%emt 0:00:06]} Kf8 {[%emt 0:02:36]} 12. Bd2 {[%emt 0:06:14]} Qc7 {[%emt 0:11:55]} 13. Qg3 {[%emt 0:14:24]} c5 {[%emt 0:10:09]} 14. Na4 {[%emt 0:09:34]} c4 {[%emt 0:11:35]} 15. Bf1 {[%emt 0:00:21]} h5 {[%emt 0:06:32]} 16. Bc3 {[%emt 0:16:09]} h4 {[%emt 0:05:33]} 17. Qe3 {[%emt 0:01:13]} Rh5 {[%emt 0:14:41]} 18. Bd4 {[%emt 0:01:30]} Rb8 {[%emt 0:01:50]} 19. b3 {[%emt 0:05:04]} Rf5 {[%emt 0:02:49]} 20. g3 {[%emt 0:03:23]} hxg3 {[%emt 0:00:17]} 21. hxg3 {[%emt 0:00:06]} Rh5 {[%emt 0:00:18]} 22. f4 {[%emt 0:03:31]} Bb7 {[%emt 0:02:34]} 23. Be2 {[%emt 0:03:35]} Rh8 {[%emt 0:01:13]} 24. Kg2 {[%emt 0:03:54]} g6 {[%emt 0:01:11]} 25. Rh1 {[%emt 0:01:25]} Kg7 {[%emt 0:00:07]} 26. g4 {[%emt 0:03:01]} Rbg8 {[%emt 0:04:44]} 27. Bf3 {[%emt 0:05:04]} cxb3 {[%emt 0:01:43]} 28. cxb3 {[%emt 0:00:34]} Qc2+ {[%emt 0:00:20]} 29. Qf2 {[%emt 0:02:14]} Rc8 {[%emt 0:02:13]} 30. Rxh8 {[%emt 0:02:23]} Kxh8 {[%emt 0:00:05]} 31. Rf1 {[%emt 0:01:12]} Kg8 {[%emt 0:01:50]} 32. Qxc2 {[%emt 0:00:59]} Rxc2+ {[%emt 0:00:06]} 33. Rf2 {[%emt 0:00:03]} Rc1 {[%emt 0:01:04]} 34. Rf1 {[%emt 0:02:17]} Rc2+ {[%emt 0:00:22]} 35. Rf2 {[%emt 0:00:06]} Rc1 {[%emt 0:00:19]} 36. Rf1 {[%emt 0:00:22]} Rc2+ {[%emt 0:00:06]} 1/2-1/2

[Event "BL Meisterschaftsturnier 2020"]
[Site "Karlsruhe"]
[Date "2020.09.19"]
[Round "6.8"]
[White "Rudolf, Henrik"]
[Black "Wegerle, Joerg"]
[Result "0-1"]
[ECO "B32"]
[WhiteElo "2295"]
[BlackElo "2401"]
[Annotator "NA"]
[PlyCount "62"]
[EventDate "2020.09.16"]
[EventType "team-tourn"]
[EventCountry "GER"]
[SourceTitle "playchess.com"]
[Source "ChessBase"]
[SourceQuality "1"]
[WhiteTeam "SF Berlin"]
[BlackTeam "Solingen"]
[TimeControl "40/5400+30:1800+30"]

1. e4 {[%emt 0:00:00]} c5 {[%emt 0:00:53]} 2. Nf3 {[%emt 0:00:00]} Nc6 {[%emt 0:00:07]} 3. d4 {[%emt 0:00:19]} cxd4 {[%emt 0:00:39]} 4. Nxd4 {[%emt 0:00:04]} e5 {[%emt 0:00:36]} 5. Nb5 {[%emt 0:00:22]} a6 {[%emt 0:03:05]} 6. Nd6+ {[%emt 0:01:27]} Bxd6 {[%emt 0:00:39]} 7. Qxd6 {[%emt 0:00:09]} Qe7 {[%emt 0:00:10]} 8. Qd1 {[%emt 0:16:42]} Nf6 {[%emt 0:01:18]} 9. Nc3 {[%emt 0:00:52]} d6 {[%emt 0:00:53]} 10. Be3 {[%emt 0:13:10]} O-O {[%emt 0:05:20]} 11. Be2 {[%emt 0:05:56]} h6 {[%emt 0:12:32]} 12. Qd2 $14 {[%emt 0:15:08]} b5 {[%emt 0:17:11]} 13. f3 {[%emt 0:10:42]} Be6 {[%emt 0:17:06]} 14. Nd5 {[%emt 0:05:05]} Bxd5 {[%emt 0:04:13]} 15. exd5 {[%emt 0:00:06]} Nd4 {[%emt 0:01:01]} 16. Rd1 {[%emt 0:14:22]} Nxd5 {[%emt 0:07:51]} 17. Bxd4 {[%emt 0:01:18]} exd4 {[%emt 0:00:18]} 18. Qxd4 {[%emt 0:00:21]} Ne3 {[%emt 0:00:38]} 19. Kf2 {[%emt 0:05:09]} Nxd1+ {[%emt 0:06:08]} 20. Rxd1 {[%emt 0:00:02]} Qe5 {[%emt 0:03:58]} 21. f4 {[%emt 0:02:03]} Qc5 {[%emt 0:01:51]} 22. Qxc5 {[%emt 0:02:41]} dxc5 {[%emt 0:00:22]} 23. Rd5 {[%emt 0:01:28]} c4 {[%emt 0:01:45]} 24. b3 {[%emt 0:00:12]} cxb3 {[%emt 0:01:05]} 25. axb3 {[%emt 0:04:10]} Rfd8 {[%emt 0:00:32]} 26. Re5 {[%emt 0:00:35]} Re8 {[%emt 0:04:26]} 27. Rf5 {[%emt 0:00:22]} g6 {[%emt 0:01:11]} 28. Rf6 {[%emt 0:00:17]} Kg7 {[%emt 0:00:42]} 29. Rb6 {[%emt 0:00:07]} Reb8 {[%emt 0:00:21]} 30. Rd6 {[%emt 0:00:28]} Rd8 {[%emt 0:00:27]} 31. Rb6 {[%emt 0:00:07]} Rd2 {[%emt 0:00:24]} 0-1

[Event "BL Meisterschaftsturnier 2020"]
[Site "Karlsruhe"]
[Date "2020.09.19"]
[Round "6.12"]
[White "Bischoff, Klaus"]
[Black "Van Foreest, Lucas"]
[Result "0-1"]
[ECO "A10"]
[WhiteElo "2503"]
[BlackElo "2531"]
[Annotator "ChessBase"]
[PlyCount "116"]
[EventDate "2020.09.16"]
[EventType "team-tourn"]
[EventCountry "GER"]
[SourceTitle "playchess.com"]
[Source "ChessBase"]
[SourceQuality "1"]
[WhiteTeam "Bayern Muenchen"]
[BlackTeam "Werder Bremen"]
[TimeControl "40/5400+30:1800+30"]

1. c4 {[%emt 0:00:00]} g6 {[%emt 0:00:00]} 2. d4 {[%emt 0:00:37]} Bg7 {[%emt 0:00:00]} 3. e4 {[%emt 0:00:27]} d6 {[%emt 0:00:04]} 4. Nc3 {[%emt 0:00:15]} c5 {[%emt 0:00:02]} 5. d5 {[%emt 0:00:44]} Bxc3+ {[%emt 0:00:04]} 6. bxc3 {[%emt 0:00:15]} e5 {[%emt 0:00:01]} 7. dxe6 {[%emt 0:17:25]} Bxe6 {[%emt 0:00:13]} 8. Nf3 {[%emt 0:00:23]} Nc6 {[%emt 0:01:33]} 9. Ng5 {[%emt 0:04:21]} Nf6 {[%emt 0:19:20]} 10. Nxe6 {[%emt 0:00:52]} fxe6 {[%emt 0:02:46]} 11. Qc2 {[%emt 0:00:17]} e5 {[%emt 0:12:05]} 12. Be2 {[%emt 0:01:40]} Qe7 {[%emt 0:00:30]} 13. O-O {[%emt 0:00:40]} O-O-O {[%emt 0:00:19]} 14. Rd1 {[%emt 0:01:36]} h6 {[%emt 0:00:51]} 15. Rd3 {[%emt 0:04:08]} g5 {[%emt 0:02:04]} 16. Rf3 {[%emt 0:02:32]} Rdf8 {[%emt 0:02:13]} 17. Bd2 {[%emt 0:05:01]} Kc7 {[%emt 0:04:20]} 18. Rd1 {[%emt 0:00:45]} Qe6 {[%emt 0:05:22]} 19. Be1 {[%emt 0:02:43]} Rhg8 {[%emt 0:00:16]} 20. Rfd3 {[%emt 0:01:59]} Rd8 {[%emt 0:00:09]} 21. Rh3 {[%emt 0:01:51]} h5 {[%emt 0:00:46]} 22. Bd2 {[%emt 0:03:23]} Rd7 {[%emt 0:01:22]} 23. Rf3 {[%emt 0:00:52]} Ne7 {[%emt 0:02:52]} 24. Qa4 {[%emt 0:02:08]} g4 {[%emt 0:01:26]} 25. Rd3 {[%emt 0:05:06]} Nc8 {[%emt 0:00:25]} 26. f3 {[%emt 0:00:21]} h4 {[%emt 0:00:03]} 27. Be1 {[%emt 0:03:07]} g3 {[%emt 0:04:41]} 28. h3 {[%emt 0:00:44]} Nb6 {[%emt 0:01:25]} 29. Qa5 {[%emt 0:00:26]} Kb8 {[%emt 0:03:45]} 30. Rd5 {[%emt 0:04:15]} Nh5 {[%emt 0:01:49]} 31. Bd2 {[%emt 0:00:37]} Rf8 {[%emt 0:01:38]} 32. Rb1 {[%emt 0:01:35]} Rc7 {[%emt 0:13:21]} 33. Bg5 {[%emt 0:03:06]} Qg6 {[%emt 0:02:18]} 34. Be3 {[%emt 0:00:58]} Nxd5 {[%emt 0:00:19]} 35. cxd5 {[%emt 0:00:07]} Nf4 {[%emt 0:00:06]} 36. Bxf4 {[%emt 0:00:10]} Rxf4 {[%emt 0:00:54]} 37. Qb5 {[%emt 0:01:05]} Rf8 {[%emt 0:01:05]} 38. Qd3 {[%emt 0:00:31]} c4 {[%emt 0:01:53]} 39. Qe3 {[%emt 0:00:20]} Rc5 {[%emt 0:00:30]} 40. Rb4 {[%emt 0:00:18]} Qf6 {[%emt 0:00:58]} 41. Kf1 {[%emt 0:30:48]} Rfc8 {[%emt 0:30:45]} 42. Ke1 {[%emt 0:00:14]} Qf4 {[%emt 0:01:32]} 43. Qxf4 {[%emt 0:00:30]} exf4 {[%emt 0:00:03]} 44. Kd2 {[%emt 0:00:31]} Ra5 {[%emt 0:00:18]} 45. a4 {[%emt 0:00:15]} b5 {[%emt 0:00:25]} 46. Bd1 {[%emt 0:01:02]} Kb7 {[%emt 0:00:47]} 47. Kc1 {[%emt 0:03:36]} Kb6 {[%emt 0:00:43]} 48. Kb2 {[%emt 0:00:52]} Kc5 {[%emt 0:00:30]} 49. Rxb5+ {[%emt 0:01:46]} Rxb5+ {[%emt 0:00:04]} 50. axb5 {[%emt 0:00:10]} Rb8 {[%emt 0:03:43]} 51. Ba4 {[%emt 0:00:22]} Kb6 {[%emt 0:04:41]} 52. Ka3 {[%emt 0:00:31]} Ka5 {[%emt 0:00:30]} 53. Bd1 {[%emt 0:00:41]} Rxb5 {[%emt 0:00:21]} 54. Bc2 {[%emt 0:00:07]} Kb6 {[%emt 0:00:15]} 55. Ka2 {[%emt 0:00:14]} Kc5 {[%emt 0:00:08]} 56. Ka3 {[%emt 0:00:07]} a5 {[%emt 0:01:03]} 57. Ka2 {[%emt 0:00:08]} a4 {[%emt 0:00:04]} 58. Ka3 {[%emt 0:00:14]} Rb3+ 0-1

[Event "BL Meisterschaftsturnier 2020"]
[Site "Karlsruhe"]
[Date "2020.09.19"]
[Round "6.13"]
[White "Zumsande, Martin"]
[Black "Fedorovsky, Michael"]
[Result "1-0"]
[ECO "B30"]
[WhiteElo "2456"]
[BlackElo "2422"]
[Annotator "ChessBase"]
[PlyCount "91"]
[EventDate "2020.09.16"]
[EventType "team-tourn"]
[EventCountry "GER"]
[SourceTitle "playchess.com"]
[Source "ChessBase"]
[SourceQuality "1"]
[WhiteTeam "Werder Bremen"]
[BlackTeam "Bayern Muenchen"]
[TimeControl "40/5400+30:1800+30"]

1. e4 {[%emt 0:00:00]} c5 {[%emt 0:00:00]} 2. Nf3 {[%emt 0:00:02]} Nc6 {[%emt 0:00:00]} 3. c3 {[%emt 0:00:06]} Nf6 {[%emt 0:00:35]} 4. e5 {[%emt 0:00:19]} Nd5 {[%emt 0:00:05]} 5. Bc4 {[%emt 0:00:27]} Nb6 {[%emt 0:01:28]} 6. Bb3 {[%emt 0:00:34]} d5 {[%emt 0:00:44]} 7. exd6 {[%emt 0:00:22]} Qxd6 {[%emt 0:00:07]} 8. Na3 {[%emt 0:00:14]} a6 {[%emt 0:14:17]} 9. O-O {[%emt 0:02:01]} Bf5 {[%emt 0:03:18]} 10. d4 {[%emt 0:01:02]} e6 {[%emt 0:14:03]} 11. Be3 {[%emt 0:06:43]} cxd4 {[%emt 0:15:58]} 12. Nxd4 {[%emt 0:01:22]} Nxd4 {[%emt 0:00:06]} 13. Bxd4 {[%emt 0:04:48]} O-O-O {[%emt 0:02:31]} 14. Qh5 {[%emt 0:14:33]} Bg6 {[%emt 0:11:22]} 15. Qf3 {[%emt 0:10:54]} Qc7 {[%emt 0:03:50]} 16. Rad1 {[%emt 0:06:49]} Bd6 {[%emt 0:01:29]} 17. h4 {[%emt 0:00:57]} h5 {[%emt 0:16:14]} 18. Bxb6 {[%emt 0:13:26]} Qxb6 {[%emt 0:00:04]} 19. Nc4 {[%emt 0:00:05]} Qc7 {[%emt 0:00:19]} 20. Nxd6+ {[%emt 0:00:11]} Rxd6 {[%emt 0:00:05]} 21. Rxd6 {[%emt 0:00:05]} Qxd6 {[%emt 0:00:03]} 22. Rd1 {[%emt 0:00:08]} Qe7 {[%emt 0:03:54]} 23. Qg3 {[%emt 0:04:20]} Re8 {[%emt 0:03:13]} 24. Qe5 {[%emt 0:13:35]} f6 {[%emt 0:02:06]} 25. Qe3 {[%emt 0:02:46]} e5 {[%emt 0:01:19]} 26. Bd5 {[%emt 0:06:52]} Kb8 {[%emt 0:00:58]} 27. c4 {[%emt 0:02:33]} Bf5 {[%emt 0:01:25]} 28. c5 {[%emt 0:02:40]} Qc7 {[%emt 0:01:35]} 29. b4 {[%emt 0:01:05]} Rd8 {[%emt 0:00:41]} 30. Bf3 {[%emt 0:00:42]} Rxd1+ {[%emt 0:00:14]} 31. Bxd1 {[%emt 0:00:05]} Qd7 {[%emt 0:01:15]} 32. Bxh5 {[%emt 0:01:19]} Bg4 {[%emt 0:01:13]} 33. Bg6 {[%emt 0:01:38]} Be6 {[%emt 0:00:13]} 34. a3 {[%emt 0:00:46]} Qd1+ {[%emt 0:01:11]} 35. Kh2 {[%emt 0:00:03]} Qa1 {[%emt 0:00:30]} 36. Qd3 {[%emt 0:01:58]} Ka7 {[%emt 0:00:23]} 37. Qd6 {[%emt 0:00:47]} Qa2 {[%emt 0:00:17]} 38. Be4 {[%emt 0:00:32]} Bc8 {[%emt 0:00:25]} 39. Qb6+ {[%emt 0:00:52]} Kb8 {[%emt 0:00:07]} 40. c6 {[%emt 0:01:37]} Qc4 {[%emt 0:00:29]} 41. cxb7 {[%emt 0:03:51]} Qxe4 {[%emt 0:00:32]} 42. bxc8=Q+ {[%emt 0:00:36]} Kxc8 {[%emt 0:00:02]} 43. Qxa6+ {[%emt 0:00:11]} Kb8 {[%emt 0:00:06]} 44. Qb6+ {[%emt 0:00:28]} Kc8 {[%emt 0:00:10]} 45. g3 {[%emt 0:00:24]} f5 {[%emt 0:01:56]} 46. Qe3 {[%emt 0:00:55]} 1-0

[Event "BL Meisterschaftsturnier 2020"]
[Site "Karlsruhe"]
[Date "2020.09.19"]
[Round "6.13"]
[White "Klein, Felix"]
[Black "Naiditsch, Arkadij"]
[Result "0-1"]
[ECO "B32"]
[WhiteElo "2307"]
[BlackElo "2624"]
[Annotator "RC"]
[PlyCount "64"]
[EventDate "2020.09.16"]
[EventType "team-tourn"]
[EventCountry "GER"]
[SourceTitle "playchess.com"]
[Source "ChessBase"]
[SourceQuality "1"]
[WhiteTeam "Aachen"]
[BlackTeam "Baden-Baden"]
[TimeControl "40/5400+30:1800+30"]

1. e4 {[%emt 0:00:40]} c5 {[%emt 0:00:00]} 2. Nf3 {[%emt 0:00:08]} Nc6 {[%emt 0:00:06]} 3. d4 {[%emt 0:00:04]} cxd4 {[%emt 0:00:14]} 4. Nxd4 {[%emt 0:00:07]} Qb6 {[%emt 0:00:05]} 5. Nb3 {[%emt 0:00:29]} Nf6 {[%emt 0:00:09]} 6. Nc3 {[%emt 0:01:00]} e6 {[%emt 0:00:10]} 7. Be3 {[%emt 0:00:12]} Qc7 {[%emt 0:00:12]} 8. a3 {[%emt 0:00:42]} a6 {[%emt 0:00:17]} 9. f4 {[%emt 0:00:19]} d6 {[%emt 0:00:09]} 10. g4 {[%emt 0:00:12]} b5 {[%emt 0:00:59]} 11. g5 {[%emt 0:00:32]} Nd7 {[%emt 0:00:13]} 12. Qd2 {[%emt 0:00:10]} Nc5 {[%emt 0:04:40]} 13. O-O-O {[%emt 0:13:27]} Rb8 {[%emt 0:05:18]} 14. f5 {[%emt 0:11:32]} Na4 {[%emt 0:05:07]} 15. g6 {[%emt 0:24:35]} hxg6 {[%emt 0:05:09]} 16. fxe6 {[%emt 0:00:04]} Bxe6 {[%emt 0:03:09]} 17. Nd5 {[%emt 0:00:48]} Bxd5 {[%emt 0:06:28]} 18. exd5 {[%emt 0:04:19]} Ne5 {[%emt 0:04:26]} 19. Bf4 {[%emt 0:01:30]} Nc4 {[%emt 0:04:44]} 20. Bxc4 {[%emt 0:15:03]} bxc4 {[%emt 0:00:13]} 21. Na5 {[%emt 0:00:02]} Be7 {[%emt 0:04:05]} 22. Nc6 {[%emt 0:05:44]} O-O {[%emt 0:00:21]} 23. Bg5 {[%emt 0:05:15]} Bxg5 {[%emt 0:05:15]} 24. Qxg5 {[%emt 0:00:05]} Rfe8 {[%emt 0:01:19]} 25. Rhe1 {[%emt 0:03:07]} Qb7 {[%emt 0:00:56]} 26. b3 {[%emt 0:05:27]} cxb3 {[%emt 0:00:26]} 27. Nxb8 {[%emt 0:00:13]} Rxb8 {[%emt 0:00:49]} 28. Rd4 {[%emt 0:05:26]} Qc8 {[%emt 0:04:21]} 29. c4 {[%emt 0:00:49]} b2+ {[%emt 0:00:30]} 30. Kc2 {[%emt 0:02:06]} Qb7 {[%emt 0:00:22]} 31. Qe3 {[%emt 0:00:45]} b1=Q+ {[%emt 0:00:23]} 32. Kd2 {[%emt 0:00:30]} Q7b2# {[%emt 0:00:15]} 0-1

[Event "BL Meisterschaftsturnier 2020"]
[Site "Karlsruhe"]
[Date "2020.09.19"]
[Round "6.14"]
[White "Lokander, Martin"]
[Black "Reuker, Jari"]
[Result "1-0"]
[ECO "D31"]
[WhiteElo "2406"]
[BlackElo "2401"]
[Annotator "NA"]
[PlyCount "123"]
[EventDate "2020.09.16"]
[EventType "team-tourn"]
[EventCountry "GER"]
[SourceTitle "playchess.com"]
[Source "ChessBase"]
[SourceQuality "1"]
[WhiteTeam "Bayern Muenchen"]
[BlackTeam "Werder Bremen"]
[TimeControl "40/5400+30:1800+30"]

1. d4 {[%emt 0:00:00]} d5 {[%emt 0:00:00]} 2. c4 {[%emt 0:00:06]} e6 {[%emt 0:00:00]} 3. Nc3 {[%emt 0:00:05]} c6 {[%emt 0:00:00]} 4. e4 {[%emt 0:02:23]} dxe4 {[%emt 0:00:02]} 5. Nxe4 {[%emt 0:00:05]} Bb4+ {[%emt 0:00:07]} 6. Bd2 {[%emt 0:01:08]} Qxd4 {[%emt 0:00:06]} 7. Bxb4 {[%emt 0:00:05]} Qxe4+ {[%emt 0:00:07]} 8. Ne2 {[%emt 0:00:35]} Na6 {[%emt 0:00:08]} 9. Bf8 {[%emt 0:00:17]} Ne7 {[%emt 0:00:07]} 10. Bxg7 {[%emt 0:00:08]} Nb4 {[%emt 0:01:54]} 11. Qd6 {[%emt 0:00:28]} Nd3+ {[%emt 0:01:56]} 12. Kd2 {[%emt 0:00:07]} Nf5 {[%emt 0:00:10]} 13. Qxd3 {[%emt 0:00:05]} Qxd3+ {[%emt 0:00:05]} 14. Kxd3 {[%emt 0:00:05]} Nxg7 {[%emt 0:00:07]} 15. Kc3 {[%emt 0:00:02]} b6 {[%emt 0:00:41]} 16. g4 {[%emt 0:00:04]} Bb7 {[%emt 0:01:37]} 17. Bg2 {[%emt 0:00:04]} O-O-O {[%emt 0:02:44]} 18. Rad1 {[%emt 0:04:03]} h5 {[%emt 0:10:01]} 19. g5 {[%emt 0:02:10]} c5 {[%emt 0:03:43]} 20. Bxb7+ {[%emt 0:00:16]} Kxb7 {[%emt 0:00:05]} 21. h4 {[%emt 0:00:19]} Nf5 {[%emt 0:06:22]} 22. Ng3 {[%emt 0:02:56]} Nd4 {[%emt 0:01:45]} 23. Kd3 {[%emt 0:00:21]} Kc7 $14 {[%emt 0:12:36]} 24. Ke4 {[%emt 0:03:22]} Rdf8 {[%emt 0:14:16]} 25. f4 {[%emt 0:12:02]} f6 {[%emt 0:06:13]} 26. Rhf1 {[%emt 0:02:35]} Rh7 {[%emt 0:07:15]} 27. Ke3 {[%emt 0:19:03]} f5 {[%emt 0:17:01]} 28. Kf2 {[%emt 0:04:09]} a6 {[%emt 0:01:29]} 29. Rfe1 {[%emt 0:00:13]} Rd8 {[%emt 0:08:02]} 30. Re3 {[%emt 0:03:06]} Rd6 {[%emt 0:01:07]} 31. Red3 {[%emt 0:00:53]} b5 {[%emt 0:02:16]} 32. b4 {[%emt 0:05:26]} bxc4 {[%emt 0:00:38]} 33. bxc5 {[%emt 0:00:24]} cxd3 {[%emt 0:00:11]} 34. cxd6+ {[%emt 0:00:04]} Kxd6 {[%emt 0:00:36]} 35. Rxd3 {[%emt 0:00:04]} Kc5 {[%emt 0:00:05]} 36. Rc3+ {[%emt 0:01:43]} Kd5 {[%emt 0:01:38]} 37. Ra3 {[%emt 0:01:21]} Rb7 {[%emt 0:01:15]} 38. Kg2 {[%emt 0:03:51]} Rb2+ {[%emt 0:01:08]} 39. Kh3 {[%emt 0:00:04]} e5 {[%emt 0:01:11]} 40. g6 {[%emt 0:02:13]} Ne6 {[%emt 0:00:44]} 41. Nxh5 {[%emt 0:35:02]} exf4 {[%emt 0:08:44]} 42. g7 {[%emt 0:00:00]} Nxg7 {[%emt 0:00:11]} 43. Nxg7 {[%emt 0:00:00]} Rb6 {[%emt 0:03:08]} 44. Nxf5 {[%emt 0:00:00]} Ke4 {[%emt 0:00:52]} 45. Kg4 {[%emt 0:00:00]} Rg6+ {[%emt 0:00:05]} 46. Kh5 {[%emt 0:00:00]} Rf6 {[%emt 0:00:46]} 47. Nh6 {[%emt 0:00:00]} f3 {[%emt 0:00:52]} 48. Ng4 {[%emt 0:00:00]} Rf8 {[%emt 0:06:45]} 49. Nf2+ {[%emt 0:00:00]} Kf4 {[%emt 0:00:29]} 50. Nh3+ {[%emt 0:00:00]} Ke5 {[%emt 0:05:08]} 51. Re3+ {[%emt 0:00:00]} Kd4 {[%emt 0:00:31]} 52. Re1 {[%emt 0:00:00]} Kd3 {[%emt 0:02:33]} 53. Nf2+ {[%emt 0:00:00]} Kd2 {[%emt 0:00:53]} 54. Re6 {[%emt 0:00:00]} Rg8 {[%emt 0:01:07]} 55. Rg6 {[%emt 0:00:00]} Rf8 {[%emt 0:03:24]} 56. Kg4 Ke2 {[%emt 0:01:06]} 57. Kg3 {[%emt 0:00:00]} Kf1 {[%emt 0:01:04]} 58. h5 {[%emt 0:00:00]} a5 {[%emt 0:00:27]} 59. h6 {[%emt 0:00:00]} Rh8 {[%emt 0:00:06]} 60. a4 {[%emt 0:00:00]} Rh7 {[%emt 0:00:09]} 61. Ng4 {[%emt 0:00:00]} Rf7 {[%emt 0:01:17]} 62. Rf6 {[%emt 0:00:00]} 1-0

[Event "BL Meisterschaftsturnier 2020"]
[Site "Karlsruhe"]
[Date "2020.09.19"]
[Round "6.15"]
[White "Wachinger, Nikolas"]
[Black "Lindgren, Philip"]
[Result "1-0"]
[ECO "B11"]
[WhiteElo "2304"]
[BlackElo "2358"]
[Annotator "NA"]
[PlyCount "59"]
[EventDate "2020.09.16"]
[EventType "team-tourn"]
[EventCountry "GER"]
[SourceTitle "playchess.com"]
[Source "ChessBase"]
[SourceQuality "1"]
[WhiteTeam "Werder Bremen"]
[BlackTeam "Bayern Muenchen"]
[TimeControl "40/5400+30:1800+30"]

1. e4 {[%emt 0:00:00]} c6 {[%emt 0:00:01]} 2. Nf3 {[%emt 0:00:00]} d5 {[%emt 0:00:10]} 3. Nc3 {[%emt 0:00:00]} Bg4 {[%emt 0:00:42]} 4. h3 {[%emt 0:00:07]} Bxf3 {[%emt 0:00:28]} 5. Qxf3 {[%emt 0:00:04]} e6 {[%emt 0:00:26]} 6. Be2 {[%emt 0:00:57]} Nf6 {[%emt 0:03:44]} 7. O-O {[%emt 0:00:17]} Nbd7 {[%emt 0:04:39]} 8. d4 {[%emt 0:00:21]} dxe4 {[%emt 0:02:15]} 9. Nxe4 {[%emt 0:00:04]} Nxe4 {[%emt 0:00:44]} 10. Qxe4 {[%emt 0:00:04]} Be7 {[%emt 0:00:20]} 11. c3 {[%emt 0:03:04]} O-O $14 {[%emt 0:00:51]} 12. Bd3 {[%emt 0:01:39]} g6 {[%emt 0:01:03]} 13. Bf4 {[%emt 0:03:58]} Re8 {[%emt 0:02:48]} 14. Qf3 {[%emt 0:59:01]} Bf6 {[%emt 0:19:04]} 15. Rad1 {[%emt 0:01:05]} Qb6 {[%emt 0:03:59]} 16. Bc1 {[%emt 0:00:36]} Qa5 {[%emt 0:08:20]} 17. Bc4 {[%emt 0:01:13]} Bg5 {[%emt 0:04:57]} 18. Be3 {[%emt 0:06:38]} Bxe3 {[%emt 0:05:41]} 19. fxe3 {[%emt 0:01:50]} Re7 {[%emt 0:03:01]} 20. Qg3 {[%emt 0:01:01]} Rf8 {[%emt 0:07:05]} 21. Rf2 {[%emt 0:02:34]} e5 {[%emt 0:06:09]} 22. Qg5 {[%emt 0:02:13]} Qd8 {[%emt 0:09:26]} 23. Rdf1 {[%emt 0:03:31]} Qe8 {[%emt 0:02:05]} 24. h4 {[%emt 0:01:19]} exd4 {[%emt 0:05:32]} 25. exd4 {[%emt 0:00:34]} Kg7 {[%emt 0:02:56]} 26. h5 {[%emt 0:00:49]} h6 {[%emt 0:02:13]} 27. Rxf7+ {[%emt 0:06:36]} Rfxf7 {[%emt 0:00:17]} 28. Qxg6+ {[%emt 0:00:07]} Kf8 {[%emt 0:00:08]} 29. Qxh6+ {[%emt 0:00:06]} Kg8 {[%emt 0:00:05]} 30. Rf3 {[%emt 0:00:37]} 1-0